Cogmind - Beta 10.1 @@@ ROGUE MODE // 2020.10.22 @ 20:31:23 Player: TheGreatBorealis Result: Self-destructed Performance ------------- Evolutions (3) 1500 Regions Visited (4) 800 Robots Destroyed (52) 260 Value Destroyed (1547) 1547 Prototype IDs (4) 80 Alien Tech Used (0) 0 Bonus (0) 0 TOTAL SCORE: 4187 Bonus ------- None Cogmind --------- Core Integrity 461/700 Matter 300/300 Energy 300/300 System Corruption 2% Temperature Cool (0) Movement Core (400) Ox7 Location -7/Factory Parts ------- > --- POWER (2) -------- Enhanced Nuclear Core > --- PROPULSION (4) --- (None) > --- UTILITY (4) ------ Medium Storage Unit Enhanced Optical Array Improved Signal Interpreter Microactuators > --- WEAPON (3) ------- Katana Katana Katana > --- INVENTORY (8) ---- Small Storage Unit Melee Analysis Suite Kinecellerator Improved Shield Generator Hacking Suite System Backup Module Shock Bomb Launcher Datajack Peak State ------------ > --- POWER ------------ Light Nuclear Core Enhanced Nuclear Core > --- PROPULSION ------- Improved Hover Unit Improved Hover Unit Improved Hover Unit Improved Hover Unit > --- UTILITY ---------- Medium Storage Unit Enhanced Optical Array Improved Signal Interpreter Microactuators > --- WEAPON ----------- Katana Katana Katana > --- INVENTORY -------- Small Storage Unit Melee Analysis Suite Kinecellerator Improved Shield Generator Hacking Suite System Backup Module Shock Bomb Launcher Datajack [Rating: 38] Favorites ----------- Power Ion Engine Engine Ion Engine Power Core Light Nuclear Core Propulsion Aluminum Leg Leg Aluminum Leg Hover Unit Improved Hover Unit Flight Unit Improved Flight Unit Utility Large Storage Unit Device Recoil Stabilizer Storage Large Storage Unit Processor Improved Signal Interpreter Protection Hardened Medium Armor Plating Weapon Katana Energy Gun Medium Laser Ballistic Gun Improved Assault Rifle Slashing Weapon Katana Build | -11 -10 -9 -8 -7 ------- Run | Scr Mat Mat Mat Fac Slots Evolved 6 | . . 2 2 2 Power 1 | . . . 1 . Propulsion 2 | . . 2 . . Utility 2 | . . . 1 1 Weapon 1 | . . . . 1 Parts Attached 74 | . 4 34 20 16 Power 5 | . . 3 1 1 Engine 2 | . . 2 . . Core 3 | . . 1 1 1 Reactor . | . . . . . Propulsion 34 | . 2 17 9 6 Treads . | . . . . . Leg 28 | . 2 16 9 1 Wheel . | . . . . . Hover 5 | . . . . 5 Flight 1 | . . 1 . . Utility 10 | . . 3 1 6 Device 4 | . . . . 4 Storage 3 | . . 3 . . Processor 2 | . . . . 2 Hackware . | . . . . . Protection 1 | . . . 1 . Artifact . | . . . . . Weapon 25 | . 2 11 9 3 Energy Gun 1 | . 1 . . . Energy Cannon . | . . . . . Ballistic Gun 14 | . 1 6 7 . Ballistic Cannon . | . . . . . Launcher . | . . . . . Special Weapon . | . . . . . Impact Weapon . | . . . . . Slashing Weapon 10 | . . 5 2 3 Piercing Weapon . | . . . . . Special Melee Weapon . | . . . . . Unidentified Prototypes 2 | . . 1 . 1 Parts Lost 19 | . . 5 7 7 Power 3 | . . 1 . 2 Propulsion 13 | . . 4 4 5 Utility . | . . . . . Weapon 3 | . . . 3 . Highest Loss Streak 5 | . . 2 5 3 Average Slot Usage (%) 93 | . 85 99 86 90 Engine 6 | . 14 10 . . Core 4 | . . . 10 9 Leg 31 | . 28 43 32 14 Hover 4 | . . . . 13 Device 2 | . . . . 7 Storage 17 | . 14 22 18 10 Processor 1 | . . . . 4 Protection 2 | . . . 8 4 Energy Gun 1 | . 13 . . . Ballistic Gun 14 | . 14 16 14 10 Slashing Weapon 6 | . . 5 3 11 Naked Turns . | . . . . . Heaviest Build 51 | 13 13 35 48 51 Greatest Support 67 | 20 20 49 60 67 Greatest Overweight (x) 7 | . . 1 1 7 Average Overweight (x) . | . . . . . Largest Inventory Capacity 14 | 6 6 14 14 14 Average Capacity 11 | 6 6 12 14 10 Most Carried 14 | 6 6 14 14 14 Average Carried 10 | 6 5 11 11 10 Final Capacity 14 | 6 6 14 14 8 Final Carried 14 | 6 6 14 14 8 Class Distribution -------------------- 69% | Mutant 21% | Scavenger-Mutant 9% | Machinist-Mutant Dominant Class ---------------- Mutant | -10/Materials Mutant | -9/Materials Scavenger-Mutant | -8/Materials Mutant | -7/Factory Resources | -11 -10 -9 -8 -7 ----------- Run | Scr Mat Mat Mat Fac Matter Collected 1614 | 200 68 820 357 169 Remotely . | . . . . . Salvage Created 1950 | . 136 1086 458 270 Parts 118 | . 11 74 23 10 Haulers Intercepted 4 | . . 4 . . Recyclers Shooed . | . . . . . Parts Field Recycled . | . . . . . Retrieved Matter . | . . . . . Parts Self-Destructed . | . . . . . Prevented . | . . . . . Kills | -11 -10 -9 -8 -7 ------- Run | Scr Mat Mat Mat Fac Combat Hostiles Destroyed 46 | . 7 24 9 6 Melee 5 | . . . . 5 Guns 41 | . 7 24 9 1 Classes Destroyed 8 | . 2 4 1 1 Hauler 4 | . . 4 . . Watcher 2 | . . 2 . . Swarmer 15 | . 6 7 . 2 Grunt 19 | . 1 11 5 2 Brawler 1 | . . . 1 . Duelist 2 | . . 1 . 1 Sentry 8 | . . 5 3 . Programmer 1 | . . . . 1 Best Kill Streak 5 | . 3 5 3 5 Combat Bots Only 5 | . 3 5 3 5 Max Kills in Single Turn 1 | . 1 1 1 1 Gunslinging . | . . . . . Exploded . | . . . . . Melee 1 | . . . . 1 Uniques/NPCs Destroyed . | . . . . . Combat | -11 -10 -9 -8 -7 -------- Run | Scr Mat Mat Mat Fac Damage Taken 3458 | . 227 1383 1050 798 Core 576 | . 60 193 84 239 Absorbed by Shields . | . . . . . Core Remaining (%) 77 | 100 76 51 84 . Volleys Fired 150 | . 16 94 36 4 Largest 2 | . 2 2 2 2 Hottest 70 | . 70 46 46 46 Shots Fired 269 | . 32 165 64 8 Gun 269 | . 32 165 64 8 Cannon . | . . . . . Launcher . | . . . . . Special . | . . . . . Kinetic 253 | . 16 165 64 8 Thermal 16 | . 16 . . . Explosive . | . . . . . Electromagnetic . | . . . . . Robot Hit Streak 25 | . 5 25 20 11 Robot Miss Streak 3 | . 3 3 2 . Penetration Max . | . . . . . Secondary Targets 2 | . . . 2 . Max Gunslinging Chain 1 | . . . 1 . Shots Hit Robots 227 | . 18 133 52 24 Core Hits 87 | . 8 48 22 9 Critical Hits 4 | . . 1 2 1 Critical Kills . | . . . . . Critical Parts Destroyed 4 | . . 1 2 1 Melee Attacks 95 | . . 29 5 61 Impact . | . . . . . Slashing 95 | . . 29 5 61 Piercing . | . . . . . Sneak Attacks 2 | . . 1 . 1 Combat Hostiles . | . . . . . Follow-up Attacks 2 | . . . . 2 Damage Inflicted 3692 | . 209 2046 777 660 Guns 2938 | . 208 1868 746 116 Cannons . | . . . . . Explosions . | . . . . . Melee 753 | . . 178 31 544 Ramming 1 | . 1 . . . Kinetic 2788 | . 58 1868 746 116 Thermal 150 | . 150 . . . Explosive . | . . . . . Electromagnetic . | . . . . . Impact . | . . . . . Slashing 753 | . . 178 31 544 Piercing . | . . . . . Highest Corruption 2 | . . 1 . 2 Average Corruption 1 | . . 1 . 2 Corruption Purged . | . . . . . Effects 13 | . . 1 . 12 Message Errors 6 | . . 1 . 5 Heat Flow Errors 2 | . . . . 2 Data Loss (minor) 3 | . . . . 3 Targeting Errors 2 | . . . . 2 Overload Shots . | . . . . . Overflow Damage 87 | . . . . 87 Projectiles . | . . . . . Explosions . | . . . . . Melee 87 | . . . . 87 Knockbacks . | . . . . . Impact . | . . . . . Kinetic . | . . . . . Secondary . | . . . . . Self-Inflicted Damage . | . . . . . Shots . | . . . . . Rammed 1 | . 1 . . . Targets Rammed 1 | . 1 . . . Kicked . | . . . . . Crushed . | . . . . . Highest Temperature 240 | . 69 1 28 240 Average Temperature 29 | . 27 1 6 79 Received Heat Transfer 1143 | . 24 399 414 306 Siege Activations . | . . . . . Robots Corrupted . | . . . . . Combat Hostiles . | . . . . . Parts Fried . | . . . . . Impact Corruptions . | . . . . . Robots Melted . | . . . . . Combat Hostiles . | . . . . . Parts Melted 1 | . 1 . . . Heat Transferred 444 | . 444 . . . Parts Sabotaged . | . . . . . Parts Stolen . | . . . . . Parts Stripped . | . . . . . Power Chain Reactions . | . . . . . Missiles Intercepted . | . . . . . Alert | -11 -10 -9 -8 -7 ------- Run | Scr Mat Mat Mat Fac Peak Influence 378 | . 238 338 378 184 Initial 171 | . . 15 125 171 Average 141 | . 118 159 221 93 Maximum Alert Level 1 | . 1 1 1 . Low Security (%) 75 | 100 75 67 44 100 Level 1 24 | . 24 32 55 . Level 2 . | . . . . . Level 3 . | . . . . . Level 4 . | . . . . . Level 5 . | . . . . . High Security . | . . . . . Max Security . | . . . . . Squads Dispatched 8 | . 2 3 1 2 Investigation 3 | . 2 1 . . Extermination 1 | . . . . 1 Reinforcement 4 | . . 2 1 1 Assault . | . . . . . Garrison . | . . . . . Intercept . | . . . . . Construction Impeded . | . . . . . Haulers Reinforced . | . . . . . Stealth | -11 -10 -9 -8 -7 --------- Run | Scr Mat Mat Mat Fac Distress Signals 8 | . 2 5 1 . Communications Jammed . | . . . . . Distress Signals . | . . . . . Times Spotted 106 | . 10 48 16 32 Peak Tracking Total 9 | . 4 8 9 8 Tactical Retreats 17 | . . 8 2 7 Traps | -11 -10 -9 -8 -7 ------- Run | Scr Mat Mat Mat Fac Traps Triggered 5 | . 1 2 . 2 Indirectly . | . . . . . Trap Hack Attempts . | . . . . . Triggered . | . . . . . Disarmed 12 | . . 12 . . Reprogrammed . | . . . . . Reused . | . . . . . Traps Extracted . | . . . . . Installed . | . . . . . Triggered . | . . . . . Machines | -11 -10 -9 -8 -7 ---------- Run | Scr Mat Mat Mat Fac Machines Disabled 2 | . 1 . 1 . Max in Single Turn 1 | . 1 . 1 . Machines Sabotaged . | . . . . . Garrisons Compromised . | . . . . . Overloaded Fab Kills . | . . . . . Fab Network Shutdowns . | . . . . . Hacking | -11 -10 -9 -8 -7 --------- Run | Scr Mat Mat Mat Fac Machines Accessed 19 | . 4 8 2 5 Terminals 10 | . 4 5 . 1 Fabricators 3 | . . . . 3 Repair Stations 2 | . . 1 1 . Recycling Units . | . . . . . Scanalyzers 4 | . . 2 1 1 Garrison Access . | . . . . . Total Hacks 71 | . 15 41 4 11 Successful 57 | . 8 36 4 9 Failed 14 | . 7 5 . 2 Catastrophic 3 | . 2 . . 1 Database Lockouts . | . . . . . Manual 13 | . 6 7 . . Terminals 28 | . 15 11 . 2 Fabricators 7 | . . . . 7 Repair Stations 4 | . . 2 2 . Recycling Units . | . . . . . Scanalyzers 32 | . . 28 2 2 Garrison Access . | . . . . . Terminal Hacks 13 | . 8 5 . . Record 1 | . 1 . . . Part Schematic 1 | . . 1 . . Prototype ID Bank 1 | . 1 . . . Branch Access Points 1 | . 1 . . . Alert Level 1 | . . 1 . . Locate Traps 1 | . 1 . . . Disarm Traps 2 | . . 2 . . Recall Investigation 3 | . 2 1 . . Hauler Manifests 1 | . 1 . . . Registered Components 1 | . 1 . . . Fabricator Hacks 7 | . . . . 7 Network Status 1 | . . . . 1 Load Schematic 3 | . . . . 3 Build 3 | . . . . 3 Repair Station Hacks 4 | . . 2 2 . Scan Component 2 | . . 1 1 . Repair 2 | . . 1 1 . Recycling Unit Hacks . | . . . . . Scanalyzer 32 | . . 28 2 2 Insert Component 16 | . . 14 1 1 Analyze 16 | . . 14 1 1 Garrison Access Hacks . | . . . . . Unauthorized Hacks 1 | . . 1 . . Terminals 1 | . . 1 . . Operators 1 | . . 1 . . Fabricators . | . . . . . Repair Stations . | . . . . . Recycling Units . | . . . . . Scanalyzers . | . . . . . Garrison Access . | . . . . . Data Cores Recovered . | . . . . . Used . | . . . . . Hacking Detections 16 | . 4 7 1 4 Full Trace Events 1 | . 1 . . . Feedback Events . | . . . . . Feedback Blocked . | . . . . . Robot Schematics Acquired . | . . . . . Robots Built . | . . . . . Matter . | . . . . . Time . | . . . . . Total Robot Build Rating . | . . . . . Part Schematics Acquired 17 | . . 15 1 1 Parts Built 6 | . . . . 6 Matter 394 | . . . . 394 Time 160 | . . . . 160 Total Part Build Rating 14 | . . . . 14 Parts Repaired 2 | . . 1 1 . Time 54 | . . 38 16 . Parts Recycled . | . . . . . Recycled Matter . | . . . . . Retrieved Matter . | . . . . . Retrieved Components . | . . . . . Parts Scanalyzed 16 | . . 14 1 1 Part Schematics Acquired 16 | . . 14 1 1 Parts Damaged 2 | . . 1 1 . Bothacking | -11 -10 -9 -8 -7 ------------ Run | Scr Mat Mat Mat Fac Used RIF Installer . | . . . . . Robots Hacked . | . . . . . Non-combat . | . . . . . Combat . | . . . . . Robot Hacks Applied . | . . . . . Relay Couplers Released . | . . . . . Robots Rewired . | . . . . . Allies Hacked . | . . . . . Hacks Repelled . | . . . . . Allies | -11 -10 -9 -8 -7 -------- Run | Scr Mat Mat Mat Fac Total Allies . | . . . . . Largest Group . | . . . . . Highest-Rated Group . | . . . . . Highest-Rated Ally . | . . . . . Total Orders . | . . . . . Ally Attacks . | . . . . . Total Damage . | . . . . . Kills . | . . . . . Allies Corrupted . | . . . . . Allies Melted . | . . . . . Intel | -11 -10 -9 -8 -7 ------- Run | Scr Mat Mat Mat Fac Robot Analysis Total . | . . . . . Derelict Logs Recovered . | . . . . . Drone Launches . | . . . . . Drone Recoveries . | . . . . . Exploration | -11 -10 -9 -8 -7 ------------- Run | Scr Mat Mat Mat Fac Turns Passed 3296 | 8 401 1536 357 994 Spaces Moved 2086 | 7 273 809 148 849 Core 3 | . . . . 3 Treads . | . . . . . Legs 1500 | 7 273 809 148 263 Wheels . | . . . . . Hover 583 | . . . . 583 Flight . | . . . . . Fastest Speed 48 | 120 120 120 120 48 Average Speed 102 | 120 120 120 125 76 Slowest Speed 400 | 120 120 150 153 400 Overloaded Moves . | . . . . . Propulsion Burnouts . | . . . . . Robots Hopped . | . . . . . Cave-ins Triggered . | . . . . . Exploration Rate (%) 31 | 2 37 75 18 25 Regions Visited 4 Branch Regions . Pre-discovered Areas . | . . . . . Known Exits Taken . | . . . . . Unknown Exits Taken 4 | 1 1 1 1 . Scrap Searched . | . . . . . Spaces Dug 61 | . . 24 4 33 Terrain Destroyed 61 | . . 24 4 33 Melee 61 | . . 24 4 33 Projectile . | . . . . . AOE . | . . . . . Terrain Rammed . | . . . . . Walls Destroyed . | . . . . . Machines Disabled . | . . . . . Actions | -11 -10 -9 -8 -7 --------- Run | Scr Mat Mat Mat Fac Total 2849 | 6 317 1164 241 1121 Wait 377 | . 13 162 29 173 Move 2082 | 6 272 808 147 849 Hop . | . . . . . Pick Up 32 | . 4 18 2 8 Fast Attach 13 | . . 2 4 7 Attach 19 | . 1 10 6 2 Detach 3 | . . 3 . . Swap 42 | . 3 22 10 7 Drop 43 | . 7 16 2 18 Fire 150 | . 16 94 36 4 Melee 87 | . . 29 5 53 Ram . | . . . . . Kick 1 | . 1 . . . Crush . | . . . . . Escape Stasis . | . . . . . Rewire . | . . . . . Trap . | . . . . . Miscellaneous . | . . . . . Route ------- -11/Scrapyard -10/Materials (discovered 2 exits: *Mat / Min) -9/Materials (discovered 2 exits: *Mat / [*Min]) -8/Materials -7/Factory History --------- Turn | Location | Event 1 | -11/Scrapyard | Discovered new exit (range 2) 9 | -11/Scrapyard | Entered Materials 311 | -10/Materials | Build established: Mutant 326 | -10/Materials | Identified exit to Mines 366 | -10/Materials | Discovered new exit (range 15) 410 | -10/Materials | Entered another Materials area 410 | -9/Materials | Evolved 2 slots: Propulsion x2 988 | -9/Materials | Repaired Katana 1204 | -9/Materials | Discovered new exit (range 7) 1909 | -9/Materials | Discovered new exit (range 16) 1946 | -9/Materials | Entered another Materials area 1946 | -8/Materials | Evolved 2 slots: Power x1, Utility x1 2051 | -8/Materials | Lost 5 parts (3n2w) 2092 | -8/Materials | Repaired Imp. Aluminum Leg 2272 | -8/Materials | Discovered new exit (range 9) 2303 | -8/Materials | Entered Factory 2303 | -7/Factory | Evolved 2 slots: Utility x1, Weapon x1 2689 | -7/Factory | Fabricated Imp. Hover Unit (x2) 2758 | -7/Factory | Fabricated Imp. Hover Unit (x2) 2967 | -7/Factory | Fabricated Katana? 3244 | -7/Factory | Lost 3 parts (1p2n) 3260 | -7/Factory | Build established: Machinist-Mutant 3297 | -7/Factory | Self-destructed Last Messages --------------- 03203_ System corrupted: Katana targeting data glitched. 03205_ G-47 Trooper destroyed. 03209_ Destroyed Imp. Melee Analysis Suite. 03213_ Imp. Hover Unit destroyed. 03215_ L-41 Fighter destroyed. 03217_ Scanalyzer disabled. 03218_ P-60 Hacker destroyed. 03221_ Acquired 29 matter. 03224_ Acquired 58 matter. 03225_ R-06 Scavenger collects VTOL Module. 03231_ Acquired 4 matter. 03266_ U-05 Engineer lays Concrete. 03273_ Imp. Hover Unit destroyed. 03278_ U-05 Engineer builds a Door. 03280_ U-05 Engineer lays Concrete. 03280_ Imp. Hover Unit destroyed. 03281_ Sneak attack on U-05 Engineer. 03281_ Destroyed Welding Torch. 03281_ Destroyed Lgt. Ion Engine. 03287_ K-01 Serf cleans the Power Conduit. Map ----- +----------------------------------------------------+ | ??????????????????????????????? #####+####### | | ???????????????????????????????? | | ????????????????????????????????? | | ?????????????????????????????????? ]! | | ????????????????????? ??????????? ]! | | ??????????????????? ???????????? ! | | ??????????????????# ?????????????# | | ??????????????????+ ?????????????# """ """ | | ??????????????????# ?????????????# """ """ | | ??????????????????# #????????????# """ """ | | ??????????????????# #????????????# | | ??????????????????# #????????????# """ | | ??????????????????# #????????????# """ | | ??????????????????+ +????????????# [ """ | | ??????????????????# #????????????# [[ | | ??????????????????# #????????????# [ | | ??????????????????# #????????????# | | ??????????????????# #????????????# | | ??????????????????# #????????????# ##### | | ??????????????????# #????????????# #???# | | ??????????????????# ############## #???# | | ????? ???????????# # #+######?#### | | ????# ?????????# # # [#????? | | ????# ######### # " " " #"""" #????? | | ????# # " " " #"""" #????? | | ????# #@" " " #"""" !#????? | | ????# gg " " " #"""" #????? | | ????# g# " " " # #????? | | ????# g# " " " ########????? | | ????#########+##### gk # " " " " #???????????? | | ??????????????????#a # " " " """ #???????????? | | ??????????????????# # " " " S" #???????????? | | ??????????????????# # #???????????? | | ??????????????????#u ######+##############????? | | ??????????????????# #????#%# #????? | | ??????????????????# #????#%# "" "" #????? | | ??????????????????# #????# # "" "" ###??? | | ??????????????????# ###### # """ """ + ??? | | ??????????????????# # """ """ #????? | | ??????????????????# # """ """ [#????? | | ??????????????????# + #????? | | ??????????????????# # #????? | | ??????????????????# + #????? | | ??????????????????# ######## #????? | | ??????????????????# #????### ! #????? | | ??????????????????# #??????# * #????? | | ??????????????????# #??????###"##########????? | | ??????????????????# #????????###?????????????? | | ??????????????????# #????????????????????????? | | ??????????????????# ?????????????????????????? | +----------------------------------------------------+ Best States ------------- Heat Dissipation 34 Energy Generation 26 Energy Capacity 360 Matter Stores 300 Matter Capacity 300 Sight Range 22 Terrain Scan Density 10 Armor Coverage 225 Melee Speed Boost 20 Evasion (%) 55 Recoil Reduction 2 Item Schematics ----------------- Aluminum Leg | -9/Materials | Scanalyzed Hcp. Storage Unit | -9/Materials | Scanalyzed Lgt. Ion Engine | -9/Materials | Scanalyzed Sml. Storage Unit | -9/Materials | Scanalyzed Lrg. Storage Unit | -9/Materials | Scanalyzed Katana | -9/Materials | Scanalyzed Adv. Signal Interpreter | -9/Materials | Scanalyzed Imp. Hover Unit | -9/Materials | Scanalyzed Hvy. Assault Rifle | -9/Materials | Scanalyzed Ion Engine | -9/Materials | Scanalyzed Imp. Aluminum Leg | -9/Materials | Scanalyzed Datajack | -9/Materials | Scanalyzed Plasma Cutter | -9/Materials | Scanalyzed Assault Rifle | -9/Materials | Scanalyzed Propulsion Shielding | -9/Materials | Hacked Lgt. Nuclear Core | -8/Materials | Scanalyzed Hacking Suite | -7/Factory | Scanalyzed Robot Schematics ------------------ None Fabricated ------------ Imp. Hover Unit | x2 | -7/Factory Imp. Hover Unit | x2 | -7/Factory Katana | x2 | -7/Factory Alien Tech Used ----------------- None Achievements -------------- None Challenges ------------ None Game ------ Seed FortressHeavyScrap Manual? 0 Play Time 00:38:03 Cumulative 63.2 hours Start 2020.10.22 @ 19:56:52 End 2020.10.22 @ 20:31:23 Sessions 1 Manual Loads 0 Difficulty Rogue Special Mode None Game No. 114 Rogue 114 Adventurer 0 Explorer 0 Win Type - Total 0 Types 0/0/0/0/0/0/0/0/0 Lore% 45 Gallery% 51 Achievement% 39 Wizard Run 0 Options --------- ASCII 0 Keyboard 1 Movement Numpad Keybinds 0 Fullscreen 2 Font 18/Terminus Map View 76x50 Tactical HUD 1 Map Filters NONE Filters NONE Steam 1 RUN: 97586bc0-808c-4754-8fa2-ecb37614fd3d